[Event "*** Titled Tuesday Blitz"]
[Site "Chess.com"]
[Date "2020.02.04"]
[Round "1"]
[White "Korchmar_Vasiliy"]
[Black "IakovUlivar"]
[Result "0-1"]
[WhiteElo "2783"]
[BlackElo "2443"]
[TimeControl "180+2"]
[EndTime "13:08:44 PST"]
[Termination "IakovUlivar won on time"]

1. d4 {[%clk 0:03:01.9]} 1... d5 {[%clk 0:02:57.5]} 2. c4 {[%clk 0:03:03.1]}
2... e6 {[%clk 0:02:57.7]} 3. Nf3 {[%clk 0:03:02]} 3... a6 {[%clk 0:02:54.2]} 4.
g3 {[%clk 0:03:03]} 4... dxc4 {[%clk 0:02:52.3]} 5. Bg2 {[%clk 0:03:04.6]} 5...
b5 {[%clk 0:02:52.3]} 6. Ne5 {[%clk 0:03:05.7]} 6... Ra7 {[%clk 0:02:46.4]} 7.
O-O {[%clk 0:03:06]} 7... Bb7 {[%clk 0:02:41.7]} 8. e4 {[%clk 0:03:04]} 8... Nf6
{[%clk 0:02:41.2]} 9. a4 {[%clk 0:03:02]} 9... Ra8 {[%clk 0:02:33.1]} 10. axb5
{[%clk 0:02:46.9]} 10... axb5 {[%clk 0:02:33.7]} 11. Rxa8 {[%clk 0:02:48.8]}
11... Bxa8 {[%clk 0:02:35.6]} 12. b3 {[%clk 0:02:34.9]} 12... Nbd7 {[%clk
0:02:23.5]} 13. bxc4 {[%clk 0:02:30.1]} 13... Nxe5 {[%clk 0:02:15.4]} 14. dxe5
{[%clk 0:02:32]} 14... Qxd1 {[%clk 0:02:16.3]} 15. Rxd1 {[%clk 0:02:33.9]} 15...
Nd7 {[%clk 0:02:16.9]} 16. cxb5 {[%clk 0:02:23.6]} 16... Nxe5 {[%clk 0:02:13.7]}
17. Bf4 {[%clk 0:02:20.9]} 17... f6 {[%clk 0:02:08.7]} 18. Nd2 {[%clk
0:01:44.6]} 18... Bc5 {[%clk 0:01:58.6]} 19. Bxe5 {[%clk 0:01:41.9]} 19... fxe5
{[%clk 0:01:59]} 20. Nf3 {[%clk 0:01:38.9]} 20... Bxe4 {[%clk 0:01:51]} 21. Nxe5
{[%clk 0:01:38.7]} 21... Bxg2 {[%clk 0:01:50.4]} 22. Kxg2 {[%clk 0:01:40.6]}
22... Bd6 {[%clk 0:01:45.2]} 23. Nc4 {[%clk 0:01:27.2]} 23... Ke7 {[%clk
0:01:45.7]} 24. Na5 {[%clk 0:01:15.3]} 24... Ra8 {[%clk 0:01:40.5]} 25. Nc6+
{[%clk 0:01:16]} 25... Kf6 {[%clk 0:01:39.4]} 26. Rd3 {[%clk 0:01:14.8]} 26...
Ra2 {[%clk 0:01:21.5]} 27. Rf3+ {[%clk 0:00:58.5]} 27... Kg6 {[%clk 0:01:19.3]}
28. Nd4 {[%clk 0:00:43.3]} 28... Rb2 {[%clk 0:01:12.5]} 29. Nxe6 {[%clk
0:00:29.8]} 29... Rxb5 {[%clk 0:01:11.8]} 30. h4 {[%clk 0:00:28.1]} 30... h6
{[%clk 0:01:02.4]} 31. g4 {[%clk 0:00:26.1]} 31... h5 {[%clk 0:00:58.3]} 32. g5
{[%clk 0:00:26.3]} 32... Rb4 {[%clk 0:00:56.2]} 33. Kh3 {[%clk 0:00:26.2]} 33...
Re4 {[%clk 0:00:53.8]} 34. Nd8 {[%clk 0:00:22.7]} 34... Rf4 {[%clk 0:00:51.6]}
35. Rxf4 {[%clk 0:00:23]} 35... Bxf4 {[%clk 0:00:53.5]} 36. Nc6 {[%clk 0:00:23]}
36... Bd6 {[%clk 0:00:51.3]} 37. Kg2 {[%clk 0:00:23]} 37... Kf5 {[%clk
0:00:46.5]} 38. Kf3 {[%clk 0:00:24.4]} 38... Bc5 {[%clk 0:00:47.6]} 39. Nd8
{[%clk 0:00:20.5]} 39... Ke5 {[%clk 0:00:41]} 40. Kg3 {[%clk 0:00:18.8]} 40...
Bd6 {[%clk 0:00:33.5]} 41. Kf3 {[%clk 0:00:05.6]} 41... c5 {[%clk 0:00:26.2]}
0-1

[Event "*** Titled Tuesday Blitz"]
[Site "Chess.com"]
[Date "2020.02.04"]
[Round "1"]
[White "Manukyan_Artak"]
[Black "Leonid_Starozhilov"]
[Result "0-1"]
[WhiteElo "2338"]
[BlackElo "2671"]
[TimeControl "180+2"]
[EndTime "13:08:53 PST"]
[Termination "Leonid_Starozhilov won by resignation"]

1. e4 {[%clk 0:03:01.9]} 1... g6 {[%clk 0:02:58.1]} 2. d4 {[%clk 0:03:02.7]}
2... Bg7 {[%clk 0:02:57.7]} 3. c4 {[%clk 0:03:03.7]} 3... d6 {[%clk 0:02:58.4]}
4. Nc3 {[%clk 0:03:04.7]} 4... Nc6 {[%clk 0:02:59.5]} 5. Be3 {[%clk 0:03:04.1]}
5... Nf6 {[%clk 0:03:00.4]} 6. f3 {[%clk 0:03:04.3]} 6... O-O {[%clk 0:03:00.6]}
7. Nge2 {[%clk 0:02:58.2]} 7... a6 {[%clk 0:03:01.5]} 8. Qd2 {[%clk 0:02:56.5]}
8... Na5 {[%clk 0:03:01.8]} 9. Ng3 {[%clk 0:02:56.8]} 9... b5 {[%clk 0:02:56.8]}
10. cxb5 {[%clk 0:02:39.6]} 10... axb5 {[%clk 0:02:57.6]} 11. Nxb5 {[%clk
0:02:36.7]} 11... Nb3 {[%clk 0:02:58.3]} 12. Qd1 {[%clk 0:02:33.8]} 12... Nxa1
{[%clk 0:02:58.9]} 13. Qxa1 {[%clk 0:02:35.7]} 13... h5 {[%clk 0:02:54.7]} 14.
Bd3 {[%clk 0:02:29.3]} 14... c6 {[%clk 0:02:38.9]} 15. Nc3 {[%clk 0:02:28.6]}
15... Ba6 {[%clk 0:02:36.1]} 16. Bxa6 {[%clk 0:02:28]} 16... Rxa6 {[%clk
0:02:38]} 17. O-O {[%clk 0:02:29.6]} 17... Qa5 {[%clk 0:02:37.1]} 18. h4 {[%clk
0:02:18]} 18... Rb8 {[%clk 0:02:34.2]} 19. Rf2 {[%clk 0:02:10.1]} 19... Nd7
{[%clk 0:02:27]} 20. Qf1 {[%clk 0:01:52.5]} 20... Rb4 {[%clk 0:02:11.2]} 21.
Nge2 {[%clk 0:01:38]} 21... Rxb2 {[%clk 0:02:08.5]} 22. g4 {[%clk 0:01:37.7]}
22... Nf6 {[%clk 0:01:52]} 23. g5 {[%clk 0:01:31.7]} 23... Nd7 {[%clk
0:01:51.6]} 24. f4 {[%clk 0:01:33]} 24... Ra8 {[%clk 0:01:38.4]} 25. f5 {[%clk
0:01:33.2]} 25... Qa3 {[%clk 0:01:25.5]} 26. fxg6 {[%clk 0:01:16.8]} 26... fxg6
{[%clk 0:01:27.4]} 27. Qh3 {[%clk 0:01:14.3]} 27... Nf8 {[%clk 0:01:19]} 28. Qf3
{[%clk 0:01:13.1]} 28... Kh7 {[%clk 0:01:05.3]} 29. Qf7 {[%clk 0:01:08.2]} 29...
Rxe2 {[%clk 0:00:56.9]} 30. Rxe2 {[%clk 0:00:58.5]} 30... Qxc3 {[%clk
0:00:55.7]} 31. Qxe7 {[%clk 0:00:59.1]} 31... Qa1+ {[%clk 0:00:44.1]} 32. Kf2
{[%clk 0:00:59.5]} 32... Rxa2 {[%clk 0:00:42.8]} 33. Qxd6 {[%clk 0:01:01]} 33...
Rxe2+ {[%clk 0:00:43.8]} 34. Kxe2 {[%clk 0:01:02.9]} 34... Qa2+ {[%clk
0:00:42.8]} 35. Kf3 {[%clk 0:01:03.1]} 35... Qf7+ {[%clk 0:00:36.2]} 36. Ke2
{[%clk 0:00:53.7]} 36... Qd7 {[%clk 0:00:36.7]} 37. Qxd7 {[%clk 0:00:47.4]}
37... Nxd7 {[%clk 0:00:37.7]} 38. e5 {[%clk 0:00:49]} 38... Kg8 {[%clk
0:00:29.5]} 39. Kd3 {[%clk 0:00:36.8]} 39... Kf7 {[%clk 0:00:29.1]} 40. Ke4
{[%clk 0:00:36.5]} 40... Ke6 {[%clk 0:00:30.4]} 41. Bf2 {[%clk 0:00:36.9]} 41...
Bf8 {[%clk 0:00:31.4]} 42. Be3 {[%clk 0:00:37.8]} 42... Nb6 {[%clk 0:00:32.2]}
43. Bf2 {[%clk 0:00:37.9]} 43... Nd5 {[%clk 0:00:33.8]} 44. Be1 {[%clk 0:00:39]}
44... Bb4 {[%clk 0:00:34.1]} 45. Bg3 {[%clk 0:00:40]} 45... Ne7 {[%clk
0:00:33.5]} 46. Kd3 {[%clk 0:00:35.9]} 46... Kd5 {[%clk 0:00:32.2]} 0-1

[Event "*** Titled Tuesday Blitz"]
[Site "Chess.com"]
[Date "2020.02.04"]
[Round "1"]
[White "Mikasinski"]
[Black "bilelou"]
[Result "1-0"]
[WhiteElo "2243"]
[BlackElo "2554"]
[TimeControl "180+2"]
[EndTime "13:08:53 PST"]
[Termination "Mikasinski won by resignation"]

1. e4 {[%clk 0:03:01.8]} 1... d6 {[%clk 0:03:00.4]} 2. d4 {[%clk 0:03:02]} 2...
g6 {[%clk 0:03:02.3]} 3. Nc3 {[%clk 0:03:01.7]} 3... Bg7 {[%clk 0:03:04.2]} 4.
Be3 {[%clk 0:03:01.9]} 4... a6 {[%clk 0:03:05.1]} 5. Qd2 {[%clk 0:03:02.8]} 5...
b5 {[%clk 0:03:06.2]} 6. a4 {[%clk 0:03:03.8]} 6... b4 {[%clk 0:03:06.5]} 7.
Nce2 {[%clk 0:03:04.7]} 7... a5 {[%clk 0:03:07.7]} 8. Ng3 {[%clk 0:03:05.5]}
8... h5 {[%clk 0:03:07.8]} 9. h4 {[%clk 0:02:49.5]} 9... Nf6 {[%clk 0:03:04.6]}
10. Nf3 {[%clk 0:02:48.2]} 10... Ng4 {[%clk 0:03:04.8]} 11. Bg5 {[%clk
0:02:41.8]} 11... Bb7 {[%clk 0:02:59.9]} 12. c3 {[%clk 0:02:40.4]} 12... Na6
{[%clk 0:02:51.4]} 13. Bb5+ {[%clk 0:02:38.7]} 13... c6 {[%clk 0:02:51.9]} 14.
Bd3 {[%clk 0:02:39.4]} 14... O-O {[%clk 0:02:51.2]} 15. O-O {[%clk 0:02:21.1]}
15... c5 {[%clk 0:02:51.8]} 16. Rfe1 {[%clk 0:02:11]} 16... Qc7 {[%clk
0:02:49.3]} 17. Nh2 {[%clk 0:01:53.2]} 17... Nxh2 {[%clk 0:02:49.2]} 18. Kxh2
{[%clk 0:01:53.1]} 18... e5 {[%clk 0:02:50.8]} 19. d5 {[%clk 0:01:47.2]} 19...
c4 {[%clk 0:02:43.7]} 20. Bc2 {[%clk 0:01:42.6]} 20... b3 {[%clk 0:02:42.4]} 21.
Bd1 {[%clk 0:01:43]} 21... Nc5 {[%clk 0:02:43.5]} 22. Be2 {[%clk 0:01:42]} 22...
Nd7 {[%clk 0:02:37.1]} 23. Bh6 {[%clk 0:01:41.3]} 23... Qd8 {[%clk 0:02:36.7]}
24. Bxg7 {[%clk 0:01:42]} 24... Qxh4+ {[%clk 0:02:37.4]} 25. Kg1 {[%clk
0:01:42.5]} 25... Kxg7 {[%clk 0:02:39.1]} 26. Bxh5 {[%clk 0:01:32.5]} 26... Nf6
{[%clk 0:02:33]} 27. Be2 {[%clk 0:01:29.6]} 27... Rac8 {[%clk 0:02:32.4]} 28.
Qe3 {[%clk 0:01:23.1]} 28... Rh8 {[%clk 0:02:31.9]} 29. Bf3 {[%clk 0:01:21.6]}
29... Rc7 {[%clk 0:02:04.3]} 30. Qb6 {[%clk 0:01:04.6]} 30... Rhc8 {[%clk
0:02:02.5]} 31. Qxd6 {[%clk 0:01:03.4]} 31... Qg5 {[%clk 0:01:57.4]} 32. Qb6
{[%clk 0:00:59.6]} 32... Qd2 {[%clk 0:01:57.4]} 33. Re2 {[%clk 0:00:58.3]} 33...
Qf4 {[%clk 0:01:58.2]} 34. Rd1 {[%clk 0:00:33.6]} 34... Nd7 {[%clk 0:01:53.5]}
35. Qxa5 {[%clk 0:00:32.6]} 35... Qf6 {[%clk 0:01:54.6]} 36. Qb4 {[%clk
0:00:30]} 36... Nc5 {[%clk 0:01:53.1]} 37. Qxc4 {[%clk 0:00:26.8]} 37... Ba6
{[%clk 0:01:53.8]} 38. Qb4 {[%clk 0:00:25]} 38... Bxe2 {[%clk 0:01:55.1]} 39.
Bxe2 {[%clk 0:00:23.5]} 39... Qd6 {[%clk 0:01:56.5]} 40. Qa3 {[%clk 0:00:19.9]}
40... Ra7 {[%clk 0:01:53.6]} 41. Bb5 {[%clk 0:00:16.2]} 41... Qb6 {[%clk
0:01:51.5]} 42. d6 {[%clk 0:00:13.5]} 42... Rd8 {[%clk 0:01:52.1]} 43. d7 {[%clk
0:00:08.8]} 43... Qc7 {[%clk 0:01:32.8]} 44. Rd5 {[%clk 0:00:08.4]} 44... Ne6
{[%clk 0:01:30.4]} 45. Qe7 {[%clk 0:00:08]} 45... Rh8 {[%clk 0:01:27.1]} 46.
d8=Q {[%clk 0:00:07.2]} 46... Qxe7 {[%clk 0:01:26.2]} 47. Qxe7 {[%clk
0:00:03.2]} 47... Rxe7 {[%clk 0:01:28.1]} 48. Rxe5 {[%clk 0:00:04.2]} 48... Rd8
{[%clk 0:01:29.6]} 49. Rd5 {[%clk 0:00:03.9]} 49... Rb8 {[%clk 0:01:28.7]} 50.
Ne2 {[%clk 0:00:02.9]} 50... Nc7 {[%clk 0:01:29.5]} 51. Rc5 {[%clk 0:00:04.1]}
51... Nxb5 {[%clk 0:01:30.4]} 52. Rxb5 {[%clk 0:00:05]} 52... Ra8 {[%clk
0:01:22.5]} 53. Rb4 {[%clk 0:00:03.9]} 53... Rxe4 {[%clk 0:01:24]} 54. Rxe4
{[%clk 0:00:04.6]} 54... Rd8 {[%clk 0:01:24.4]} 55. Nd4 {[%clk 0:00:05.3]} 55...
Rb8 {[%clk 0:01:24.6]} 56. Re5 {[%clk 0:00:05.3]} 56... Ra8 {[%clk 0:01:25.4]}
57. a5 {[%clk 0:00:04.9]} 57... Rxa5 {[%clk 0:01:25.7]} 58. Rxa5 {[%clk
0:00:05.4]} 1-0

[Event "*** Titled Tuesday Blitz"]
[Site "Chess.com"]
[Date "2020.02.04"]
[Round "1"]
[White "SuperCheese"]
[Black "renehp"]
[Result "1-0"]
[WhiteElo "2692"]
[BlackElo "2366"]
[TimeControl "180+2"]
[EndTime "13:08:56 PST"]
[Termination "SuperCheese won by resignation"]

1. d4 {[%clk 0:03:01.7]} 1... Nf6 {[%clk 0:02:58.8]} 2. c4 {[%clk 0:03:02.8]}
2... e6 {[%clk 0:02:52.9]} 3. Nc3 {[%clk 0:03:02.9]} 3... Bb4 {[%clk 0:02:53.4]}
4. Qc2 {[%clk 0:03:04.3]} 4... d5 {[%clk 0:02:52.5]} 5. Nf3 {[%clk 0:03:05.5]}
5... c5 {[%clk 0:02:47.7]} 6. cxd5 {[%clk 0:03:01.4]} 6... exd5 {[%clk
0:02:46.8]} 7. Bg5 {[%clk 0:03:01.9]} 7... Nc6 {[%clk 0:02:42.3]} 8. e3 {[%clk
0:03:01.6]} 8... h6 {[%clk 0:02:41.3]} 9. Bh4 {[%clk 0:03:00.1]} 9... g5 {[%clk
0:02:41.9]} 10. Bg3 {[%clk 0:03:00.7]} 10... Ne4 {[%clk 0:02:41.8]} 11. Bd3
{[%clk 0:03:00.9]} 11... Bf5 {[%clk 0:02:42.7]} 12. O-O {[%clk 0:02:59.1]} 12...
Bxc3 {[%clk 0:02:38.6]} 13. bxc3 {[%clk 0:02:59]} 13... c4 {[%clk 0:02:37.8]}
14. Bxe4 {[%clk 0:02:56.8]} 14... Bxe4 {[%clk 0:01:36.2]} 15. Qb2 {[%clk
0:02:52.2]} 15... b6 {[%clk 0:01:35.4]} 16. Nd2 {[%clk 0:02:04.2]} 16... Bd3
{[%clk 0:01:32.3]} 17. Rfe1 {[%clk 0:02:03.6]} 17... O-O {[%clk 0:01:32.8]} 18.
f3 {[%clk 0:01:55.3]} 18... Ne7 {[%clk 0:01:15.3]} 19. e4 {[%clk 0:01:54.9]}
19... dxe4 {[%clk 0:01:15.6]} 20. fxe4 {[%clk 0:01:55.3]} 20... f5 {[%clk
0:01:16.8]} 21. Be5 {[%clk 0:01:30.9]} 21... fxe4 {[%clk 0:01:15.2]} 22. Nxe4
{[%clk 0:01:32.7]} 22... Nd5 {[%clk 0:01:12.5]} 23. Nf2 {[%clk 0:01:21.8]} 23...
Bf5 {[%clk 0:01:05.2]} 24. Re2 {[%clk 0:01:20.7]} 24... Qd7 {[%clk 0:01:02.9]}
25. Rae1 {[%clk 0:01:20]} 25... Rf7 {[%clk 0:01:04.1]} 26. Qd2 {[%clk
0:01:04.3]} 26... Raf8 {[%clk 0:01:02.5]} 27. h4 {[%clk 0:01:05.2]} 27... Bg6
{[%clk 0:00:45.6]} 28. hxg5 {[%clk 0:01:01.1]} 28... Bh5 {[%clk 0:00:46.7]} 29.
g6 {[%clk 0:00:52.5]} 29... Bxg6 {[%clk 0:00:35.6]} 30. Qxh6 {[%clk 0:00:52.3]}
30... Rg7 {[%clk 0:00:32.2]} 31. Bxg7 {[%clk 0:00:35.4]} 31... Qxg7 {[%clk
0:00:32.9]} 32. Qxg7+ {[%clk 0:00:36.1]} 32... Kxg7 {[%clk 0:00:34]} 33. Rc1
{[%clk 0:00:35.8]} 33... b5 {[%clk 0:00:34]} 34. Re5 {[%clk 0:00:36]} 34... Bf7
{[%clk 0:00:32.4]} 35. Ne4 {[%clk 0:00:33.2]} 35... a6 {[%clk 0:00:32.6]} 36.
Rf1 {[%clk 0:00:17.6]} 36... Ne3 {[%clk 0:00:31.1]} 37. Rf3 {[%clk 0:00:18.2]}
37... Nc2 {[%clk 0:00:20.4]} 38. Rg5+ {[%clk 0:00:19.2]} 38... Bg6 {[%clk
0:00:21.2]} 39. Rxf8 {[%clk 0:00:20.1]} 39... Kxf8 {[%clk 0:00:22.7]} 40. Rxg6
{[%clk 0:00:21.7]} 40... b4 {[%clk 0:00:24.2]} 41. cxb4 {[%clk 0:00:22.2]} 41...
Nxd4 {[%clk 0:00:25.2]} 42. Rxa6 {[%clk 0:00:22]} 42... Ne2+ {[%clk 0:00:25.7]}
43. Kf2 {[%clk 0:00:23]} 43... Nf4 {[%clk 0:00:26.6]} 44. b5 {[%clk 0:00:23.1]}
44... Nd5 {[%clk 0:00:26.2]} 45. b6 {[%clk 0:00:23.4]} 45... Nxb6 {[%clk
0:00:26.7]} 46. Rxb6 {[%clk 0:00:24.5]} 46... Ke7 {[%clk 0:00:28.3]} 47. Rc6
{[%clk 0:00:25.7]} 1-0

[Event "*** Titled Tuesday Blitz"]
[Site "Chess.com"]
[Date "2020.02.04"]
[Round "1"]
[White "mitrabhaa"]
[Black "TwentyHourADay"]
[Result "0-1"]
[WhiteElo "2559"]
[BlackElo "2239"]
[TimeControl "180+2"]
[EndTime "13:08:59 PST"]
[Termination "TwentyHourADay won by resignation"]

1. d4 {[%clk 0:03:01.8]} 1... Nf6 {[%clk 0:03:00.8]} 2. Bg5 {[%clk 0:03:02.2]}
2... d5 {[%clk 0:02:59.7]} 3. Nd2 {[%clk 0:03:01.1]} 3... c6 {[%clk 0:02:59.8]}
4. e3 {[%clk 0:03:02.2]} 4... Bf5 {[%clk 0:02:59.7]} 5. c3 {[%clk 0:03:00.5]}
5... Nbd7 {[%clk 0:03:00.8]} 6. Ngf3 {[%clk 0:03:01.4]} 6... e6 {[%clk
0:03:02.1]} 7. Nh4 {[%clk 0:03:00.4]} 7... Bg4 {[%clk 0:02:59.7]} 8. Qb3 {[%clk
0:03:00.2]} 8... Qb6 {[%clk 0:02:59.1]} 9. Bd3 {[%clk 0:02:57.1]} 9... Bh5
{[%clk 0:02:48.2]} 10. Bxf6 {[%clk 0:02:48.7]} 10... Nxf6 {[%clk 0:02:48.7]} 11.
f4 {[%clk 0:02:50.2]} 11... Bg6 {[%clk 0:02:48]} 12. Nxg6 {[%clk 0:02:49.1]}
12... hxg6 {[%clk 0:02:49.1]} 13. Nf3 {[%clk 0:02:50.7]} 13... Be7 {[%clk
0:02:46.3]} 14. Ne5 {[%clk 0:02:47.2]} 14... Nd7 {[%clk 0:02:47.1]} 15. O-O
{[%clk 0:02:44.4]} 15... Qxb3 {[%clk 0:02:39.6]} 16. axb3 {[%clk 0:02:45]} 16...
a6 {[%clk 0:02:41.5]} 17. b4 {[%clk 0:02:44.3]} 17... Rc8 {[%clk 0:02:39.1]} 18.
g3 {[%clk 0:02:42.5]} 18... Bd6 {[%clk 0:02:35.3]} 19. Nf3 {[%clk 0:02:42.8]}
19... Nf6 {[%clk 0:02:25.4]} 20. Kg2 {[%clk 0:02:41]} 20... Ke7 {[%clk
0:02:25.2]} 21. h3 {[%clk 0:02:41.2]} 21... Nd7 {[%clk 0:02:18.9]} 22. g4 {[%clk
0:02:40.1]} 22... f5 {[%clk 0:02:19.1]} 23. g5 {[%clk 0:02:39.1]} 23... Kf7
{[%clk 0:02:15.5]} 24. h4 {[%clk 0:02:39.8]} 24... Rh7 {[%clk 0:02:10.5]} 25.
Rh1 {[%clk 0:02:40.7]} 25... Rch8 {[%clk 0:02:10.7]} 26. Kg3 {[%clk 0:02:41.9]}
26... Ke7 {[%clk 0:02:09.7]} 27. Nd2 {[%clk 0:02:41.9]} 27... Kd8 {[%clk
0:02:05.9]} 28. Nb3 {[%clk 0:02:42.9]} 28... Kc7 {[%clk 0:02:07]} 29. Rh2 {[%clk
0:02:43.5]} 29... Re8 {[%clk 0:02:05.9]} 30. Rah1 {[%clk 0:02:43.6]} 30... Reh8
{[%clk 0:02:06.8]} 31. Nd2 {[%clk 0:02:44.1]} 31... Rg8 {[%clk 0:02:07.7]} 32.
h5 {[%clk 0:02:43.1]} 32... Rgh8 {[%clk 0:02:07.5]} 33. hxg6 {[%clk 0:02:31.1]}
33... Rxh2 {[%clk 0:02:06.9]} 34. Rxh2 {[%clk 0:02:32]} 34... Rxh2 {[%clk
0:02:08.8]} 35. Kxh2 {[%clk 0:02:33.5]} 35... Nf8 {[%clk 0:02:10.7]} 36. Be2
{[%clk 0:02:34.9]} 36... Nxg6 {[%clk 0:02:11.8]} 37. Bh5 {[%clk 0:02:36.5]}
37... Nxf4 {[%clk 0:02:12]} 38. Bf3 {[%clk 0:02:21.6]} 38... Nd3+ {[%clk
0:02:07.1]} 39. Kg2 {[%clk 0:02:22.3]} 39... Nxb2 {[%clk 0:02:07.7]} 40. Kf2
{[%clk 0:02:19.4]} 40... Na4 {[%clk 0:02:04.1]} 41. Nb1 {[%clk 0:02:18.9]} 41...
e5 {[%clk 0:02:03.4]} 42. Ke1 {[%clk 0:02:11.8]} 42... e4 {[%clk 0:02:00.9]} 43.
Bh5 {[%clk 0:02:12.8]} 43... Nb2 {[%clk 0:01:57.9]} 44. Nd2 {[%clk 0:02:08.2]}
44... Nd3+ {[%clk 0:01:58.6]} 45. Ke2 {[%clk 0:02:08.1]} 45... f4 {[%clk
0:01:54.2]} 46. Nf1 {[%clk 0:02:09.2]} 46... b6 {[%clk 0:01:44.8]} 47. Bg6
{[%clk 0:02:03.9]} 47... f3+ {[%clk 0:01:44.1]} 48. Kd2 {[%clk 0:02:05.1]} 48...
Nb2 {[%clk 0:01:43.6]} 49. Kc2 {[%clk 0:02:03]} 49... Nc4 {[%clk 0:01:43.9]} 50.
Kb3 {[%clk 0:02:03.4]} 50... b5 {[%clk 0:01:40.4]} 51. Kc2 {[%clk 0:02:03.9]}
51... Kb6 {[%clk 0:01:36.1]} 52. Be8 {[%clk 0:02:04.5]} 52... Be7 {[%clk
0:01:35]} 53. g6 {[%clk 0:01:56.4]} 53... Bd6 {[%clk 0:01:35.4]} 54. Bd7 {[%clk
0:01:56.1]} 54... Kc7 {[%clk 0:01:35.6]} 55. Bg4 {[%clk 0:01:56]} 55... a5
{[%clk 0:01:35.5]} 56. bxa5 {[%clk 0:01:56.7]} 56... Nxa5 {[%clk 0:01:37.4]} 57.
Be6 {[%clk 0:01:58.1]} 57... Nc4 {[%clk 0:01:37.5]} 58. Kd1 {[%clk 0:01:58.2]}
58... b4 {[%clk 0:01:31.7]} 59. cxb4 {[%clk 0:01:59]} 59... Bxb4 {[%clk
0:01:32.9]} 60. Bf7 {[%clk 0:01:58.4]} 60... Kd6 {[%clk 0:01:32.9]} 61. Bg8
{[%clk 0:01:59.4]} 61... c5 {[%clk 0:01:33.2]} 62. dxc5+ {[%clk 0:02:00.1]}
62... Bxc5 {[%clk 0:01:34.1]} 63. Ke1 {[%clk 0:01:59]} 63... Nxe3 {[%clk
0:01:30.6]} 64. Ng3 {[%clk 0:02:00.4]} 64... Ng4 {[%clk 0:01:25.9]} 65. Bf7
{[%clk 0:01:51.7]} 65... f2+ {[%clk 0:01:26.3]} 66. Ke2 {[%clk 0:01:52.4]} 66...
Ke5 {[%clk 0:01:19.4]} 67. Be8 {[%clk 0:01:52.4]} 67... d4 {[%clk 0:01:18.9]}
68. Bd7 {[%clk 0:01:53.5]} 68... d3+ {[%clk 0:01:19.5]} 69. Kf1 {[%clk
0:01:54.1]} 69... Nf6 {[%clk 0:01:15.4]} 70. Bc6 {[%clk 0:01:51.5]} 70... e3
{[%clk 0:01:15.5]} 71. Kg2 {[%clk 0:01:52.6]} 71... e2 {[%clk 0:01:13]} 0-1

[Event "*** Titled Tuesday Blitz"]
[Site "Chess.com"]
[Date "2020.02.04"]
[Round "1"]
[White "Roman_Ovetchkin"]
[Black "MFBerna"]
[Result "1-0"]
[WhiteElo "2666"]
[BlackElo "2335"]
[TimeControl "180+2"]
[EndTime "13:09:09 PST"]
[Termination "Roman_Ovetchkin won by resignation"]

1. d4 {[%clk 0:03:01.1]} 1... Nf6 {[%clk 0:02:53.5]} 2. c4 {[%clk 0:03:01.3]}
2... e6 {[%clk 0:02:54.4]} 3. Nf3 {[%clk 0:03:01.6]} 3... d5 {[%clk 0:02:55.7]}
4. g3 {[%clk 0:03:02.3]} 4... Be7 {[%clk 0:02:56.8]} 5. Bg2 {[%clk 0:03:03.3]}
5... O-O {[%clk 0:02:58.1]} 6. O-O {[%clk 0:03:04.7]} 6... dxc4 {[%clk
0:02:59.6]} 7. Qc2 {[%clk 0:03:05.1]} 7... a6 {[%clk 0:02:59]} 8. a4 {[%clk
0:03:05]} 8... Bd7 {[%clk 0:02:59.9]} 9. Bg5 {[%clk 0:03:03.5]} 9... Bc6 {[%clk
0:02:57.8]} 10. Bxf6 {[%clk 0:03:04.2]} 10... Bxf6 {[%clk 0:02:59.7]} 11. Rd1
{[%clk 0:03:04.8]} 11... b5 {[%clk 0:02:50]} 12. Nc3 {[%clk 0:03:04.2]} 12...
Nd7 {[%clk 0:02:37.9]} 13. Ng5 {[%clk 0:03:03.9]} 13... Bxg5 {[%clk 0:02:37.6]}
14. Bxc6 {[%clk 0:03:04.3]} 14... Rb8 {[%clk 0:02:20.5]} 15. axb5 {[%clk
0:03:04.9]} 15... axb5 {[%clk 0:02:22.4]} 16. Nxb5 {[%clk 0:02:51.9]} 16... Nb6
{[%clk 0:02:22.1]} 17. Ra7 {[%clk 0:02:33.5]} 17... Qe7 {[%clk 0:02:13.8]} 18.
Rxc7 {[%clk 0:01:34.9]} 18... Qb4 {[%clk 0:02:08.6]} 19. Ra1 {[%clk 0:01:01.4]}
19... Nd5 {[%clk 0:02:09.3]} 20. Bxd5 {[%clk 0:00:59.9]} 20... exd5 {[%clk
0:02:09.9]} 21. Nc3 {[%clk 0:00:59.7]} 21... Qxb2 {[%clk 0:02:05.5]} 22. Qxb2
{[%clk 0:00:56.2]} 22... Rxb2 {[%clk 0:02:07.4]} 23. e3 {[%clk 0:00:50.8]} 23...
h5 {[%clk 0:01:51.2]} 24. h4 {[%clk 0:00:44.1]} 24... Bh6 {[%clk 0:01:34.7]} 25.
Nxd5 {[%clk 0:00:44.1]} 25... Rc2 {[%clk 0:01:23.7]} 26. Ra4 {[%clk 0:00:39.9]}
26... Rb8 {[%clk 0:01:15.4]} 27. Raxc4 {[%clk 0:00:40.1]} 27... Rb1+ {[%clk
0:01:11.1]} 28. Kg2 {[%clk 0:00:41.1]} 28... Rd2 {[%clk 0:01:09.6]} 29. Rc2
{[%clk 0:00:39.4]} 29... Rdd1 {[%clk 0:01:07.4]} 30. Ne7+ {[%clk 0:00:36.9]}
30... Kh7 {[%clk 0:01:07.1]} 31. Nf5 {[%clk 0:00:38.2]} 31... Rg1+ {[%clk
0:00:53.7]} 32. Kf3 {[%clk 0:00:38]} 32... f6 {[%clk 0:00:47.4]} 33. Re7 {[%clk
0:00:31.1]} 33... Rgf1 {[%clk 0:00:39.1]} 34. d5 {[%clk 0:00:20.6]} 34... Rbd1
{[%clk 0:00:38.1]} 35. d6 {[%clk 0:00:21.3]} 35... Kg6 {[%clk 0:00:35.4]} 36.
Nxh6 {[%clk 0:00:22.3]} 36... Kxh6 {[%clk 0:00:36.3]} 37. d7 {[%clk 0:00:24.2]}
37... Rd6 {[%clk 0:00:28.7]} 38. Rc8 {[%clk 0:00:22]} 38... Rfd1 {[%clk
0:00:20.7]} 39. Rh8+ {[%clk 0:00:21.5]} 39... Kg6 {[%clk 0:00:22.2]} 40. Rg8
{[%clk 0:00:22.9]} 40... Kh6 {[%clk 0:00:15.4]} 41. Rgxg7 {[%clk 0:00:23.4]}
41... R1d5 {[%clk 0:00:08.5]} 42. Kf4 {[%clk 0:00:22]} 42... Rxd7 {[%clk
0:00:05.3]} 43. Rxd7 {[%clk 0:00:22]} 43... Rf5+ {[%clk 0:00:05.6]} 44. Ke4
{[%clk 0:00:18.5]} 44... Re5+ {[%clk 0:00:06.1]} 45. Kd4 {[%clk 0:00:19.1]}
45... Re4+ {[%clk 0:00:05.2]} 46. Kxe4 {[%clk 0:00:18.6]} 46... f5+ {[%clk
0:00:06.2]} 47. Ke5 {[%clk 0:00:19.7]} 1-0